fUSD/lending_fUSD_20240516
["ID","MTS","AMOUNT","RATE_DAILY","PERIOD"]
[327215859,1715902241617,-1340.11,0.00011076,2]
[327215860,1715902241629,-1304.68,0.00011076,2]
[327215861,1715902241640,-1330.82,0.00011076,2]
[327215862,1715902241652,-500.0,0.00011076,2]
[327215863,1715902241664,-1383.07,0.00011076,2]
[327215864,1715902241676,-741.82,0.00011076,2]
[327215865,1715902241688,-500.0,0.00011076,2]
[327215866,1715902241699,-500.0,0.00011076,2]
[327215867,1715902241711,-640.4,0.00011076,2]
[327215868,1715902241722,-1543.44,0.00011076,2]
[327215869,1715902241734,-5574.42,0.00011076,2]
[327215870,1715902241745,-500.0,0.00011076,2]
[327215871,1715902241757,-740.74,0.00011076,2]
[327215872,1715902241769,-500.0,0.00011076,2]
[327215873,1715902241781,-500.0,0.00011076,2]
[327215874,1715902241794,-500.0,0.00011076,2]
[327215875,1715902241806,-500.0,0.00011076,2]
[327215876,1715902241818,-10000.0,0.00011077,2]
[327215877,1715902241829,-51222.2639,0.00011077,2]
[327215878,1715902241840,-172.49496931,0.00011077,2]
[327215879,1715902241852,-196.89576948,0.00011077,2]
[327215880,1715902241864,-176.80081464,0.00011077,2]
[327215881,1715902241875,-208.3134592,0.0001108,2]
[327215882,1715902241887,-401.42749512,0.00011174,2]
[327215883,1715902241898,-500.0,0.00011174,2]
[327215884,1715902241910,-500.0,0.00011174,2]
[327215885,1715902241921,-360.31,0.00011174,2]
[327215886,1715902241932,-500.0,0.00011174,2]
[327215887,1715902241944,-500.0,0.00011174,2]
[327215888,1715902241955,-7523.6,0.00011174,2]
[327215889,1715902241966,-500.0,0.00011174,2]
[327215890,1715902241977,-500.0,0.00011174,2]
[327215891,1715902241988,-845.28,0.00011174,2]
[327215892,1715902242000,-845.6,0.00011174,2]
[327215893,1715902242011,-636.39,0.00011174,2]
[327215894,1715902242024,-1366.97,0.00011174,2]
[327215895,1715902242035,-2414.0,0.00011174,2]
[327215896,1715902242047,-623.19,0.00011174,2]
[327215897,1715902242058,-500.0,0.00011174,2]
[327215898,1715902242070,-798.44,0.00011174,2]
[327215899,1715902242082,-2737.36,0.00011174,2]
[327215900,1715902242094,-500.0,0.00011174,2]
[327215901,1715902242106,-1845.75,0.00011174,2]
[327215902,1715902242119,-500.0,0.00011174,2]
[327215903,1715902242130,-500.0,0.00011174,2]
[327215904,1715902242141,-500.0,0.00011174,2]
[327215905,1715902242153,-500.0,0.00011174,2]
[327215906,1715902242165,-1847.71,0.00011174,2]
[327215907,1715902242176,-1503.09,0.00011174,2]
[327215908,1715902242188,-500.0,0.00011174,2]
[327215909,1715902242200,-828.77,0.00011174,2]
[327215910,1715902242213,-828.77,0.00011174,2]
[327215911,1715902242225,-646.9,0.00011174,2]
[327215912,1715902242238,-1336.74,0.00011174,2]
[327215913,1715902242250,-1683.5,0.00011174,2]
[327215914,1715902242262,-500.0,0.00011174,2]
[327215915,1715902242276,-500.0,0.00011174,2]
[327215916,1715902242289,-500.0,0.00011174,2]
[327215917,1715902242301,-500.0,0.00011174,2]
[327215918,1715902242312,-624.27,0.00011174,2]
[327215919,1715902242325,-770.41,0.00011174,2]
[327215920,1715902242344,-770.41,0.00011174,2]
[327215921,1715902242356,-1260.59,0.00011174,2]
[327215922,1715902242368,-310.69,0.00011174,2]
[327215923,1715902242380,-557.52,0.00011174,2]
[327215924,1715902242392,-1557.81,0.00011174,2]
[327215925,1715902242404,-500.0,0.00011174,2]
[327215926,1715902242415,-2363.86,0.00011174,2]
[327215927,1715902242427,-500.0,0.00011174,2]
[327215928,1715902242439,-500.0,0.00011174,2]
[327215929,1715902242451,-492.19,0.00011174,2]
[327215930,1715902242463,-973.36,0.00011174,2]
[327215931,1715902242475,-156.52,0.00011174,2]
[327215932,1715902242487,-500.0,0.00011174,2]
[327215933,1715902242498,-500.0,0.00011174,2]
[327215934,1715902242511,-396.42263265,0.00011174,2]
[327215935,1715902242526,-1202.76,0.00011174,2]
[327215936,1715902242538,-500.0,0.00011174,2]
[327215937,1715902242550,-500.0,0.00011174,2]
[327215938,1715902242563,-500.0,0.00011174,2]
[327215939,1715902242575,-500.0,0.00011174,2]
[327215940,1715902242587,-739.27,0.00011174,2]
[327215941,1715902242599,-500.0,0.00011174,2]
[327215942,1715902242611,-500.0,0.00011174,2]
[327215943,1715902242623,-2171.72,0.00011174,2]
[327215944,1715902242634,-500.0,0.00011174,2]
[327215945,1715902242646,-500.0,0.00011174,2]
[327215946,1715902242658,-500.0,0.00011174,2]
[327215947,1715902242676,-500.0,0.00011174,2]
[327215948,1715902242688,-4659.0,0.00011174,2]
[327215949,1715902242700,-500.0,0.00011174,2]
[327215950,1715902242711,-500.0,0.00011174,2]
[327215951,1715902242723,-500.0,0.00011174,2]
[327215955,1715902242734,-500.0,0.00011174,2]
[327215957,1715902242746,-1063.12,0.00011174,2]
[327215960,1715902242758,-1063.12,0.00011174,2]
[327215962,1715902242769,-924.38,0.00011174,2]
[327215964,1715902242781,-5407.59,0.00011174,2]
[327215966,1715902242793,-760.35,0.00011174,2]
[327215967,1715902242811,-500.0,0.00011174,2]
[327215968,1715902242822,-817.68,0.00011174,2]
[327215969,1715902242833,-500.0,0.00011174,2]
[327215970,1715902242843,-500.0,0.00011174,2]
[327215971,1715902242854,-500.0,0.00011174,2]
[327215972,1715902242865,-500.0,0.00011174,2]
[327215973,1715902242876,-500.0,0.00011174,2]
[327215974,1715902242887,-500.0,0.00011174,2]
[327215975,1715902242898,-500.0,0.00011174,2]
[327215976,1715902242909,-500.0,0.00011174,2]
[327215977,1715902242920,-500.0,0.00011174,2]
[327215979,1715902242930,-589.47,0.00011174,2]
[327215981,1715902242942,-500.0,0.00011174,2]
[327215983,1715902242952,-500.0,0.00011174,2]
[327215985,1715902242963,-589.47,0.00011174,2]
[327215986,1715902242974,-500.0,0.00011174,2]
[327215987,1715902242984,-500.0,0.00011174,2]
[327215988,1715902242994,-405.36,0.00011174,2]
[327215989,1715902243005,-500.0,0.00011174,2]
[327215990,1715902243016,-500.0,0.00011174,2]
[327215991,1715902243026,-500.0,0.00011174,2]
[327215992,1715902243036,-557.05,0.00011174,2]
[327215993,1715902243047,-557.05,0.00011174,2]
[327215994,1715902243058,-500.0,0.00011174,2]
[327215995,1715902243069,-643.55,0.00011174,2]
[327215996,1715902243414,-500.0,0.00011174,2]
[327215997,1715902243445,-316.54159119,0.00011175,2]
[327215998,1715902243461,-248.09073762,0.00011175,2]
[327215999,1715902243470,-500.0,0.00011175,2]
[327216000,1715902243480,-500.0,0.00011175,2]
[327216001,1715902243490,-519.31578406,0.00011175,2]
[327216002,1715902243499,-579.7,0.00011175,2]
[327216003,1715902243510,-500.0,0.00011175,2]
[327216004,1715902243525,-165.22,0.00011175,2]
[327216005,1715902243534,-500.0,0.00011175,2]
[327216006,1715902243545,-358.83,0.00011175,2]
[327216007,1715902243554,-500.0,0.00011175,2]
[327216008,1715902243565,-500.0,0.00011175,2]
[327216009,1715902243574,-500.0,0.00011175,2]
[327216010,1715902243583,-422.8,0.00011175,2]
[327216011,1715902243592,-423.36,0.00011175,2]
[327216012,1715902243605,-564.44,0.00011175,2]
[327216013,1715902243614,-399.59,0.00011175,2]
[327216014,1715902243623,-194.881765,0.00011175,2]
[327216015,1715902243632,-500.0,0.00011175,2]
[327216016,1715902243641,-155.0,0.00011175,2]
[327216017,1715902243651,-176.23597455,0.00011175,2]
[327216018,1715902243661,-155.0,0.00011175,2]
[327216019,1715902243671,-155.0,0.00011175,2]
[327216020,1715902243681,-344.14475486,0.00011175,2]
[327216021,1715902243691,-259.8,0.00011175,2]
[327216022,1715902243701,-155.0,0.00011175,2]
[327216023,1715902243711,-500.0,0.00011175,2]
[327216024,1715902243722,-500.0,0.00011175,2]
[327216025,1715902243733,-567.64,0.00011175,2]
[327216026,1715902243743,-500.0,0.00011175,2]
[327216027,1715902243752,-621.296299,0.00011175,2]
[327216028,1715902243761,-503.78,0.00011175,2]
[327216029,1715902243772,-500.0,0.00011175,2]
[327216030,1715902243781,-500.0,0.00011175,2]
[327216031,1715902243792,-500.0,0.00011175,2]
[327216032,1715902243801,-500.0,0.00011175,2]
[327216033,1715902243811,-504.31598883,0.00011175,2]
[327216034,1715902243821,-500.0,0.00011175,2]
[327216035,1715902243831,-519.5,0.00011175,2]
[327216036,1715902243841,-252.85,0.00011175,2]
[327216037,1715902243851,-500.0,0.00011175,2]
[327216038,1715902243861,-239.17,0.00011175,2]
[327216039,1715902243871,-500.0,0.00011175,2]
[327216040,1715902243881,-396.4,0.00011175,2]
[327216041,1715902243890,-186.49,0.00011175,2]
[327216042,1715902243900,-500.0,0.00011175,2]
[327216043,1715902243911,-500.0,0.00011175,2]
[327216044,1715902243920,-500.0,0.00011175,2]
[327216045,1715902243931,-500.0,0.00011175,2]
[327216046,1715902243940,-500.0,0.00011175,2]
[327216047,1715902243950,-500.0,0.00011175,2]
[327216048,1715902243959,-500.0,0.00011175,2]
[327216049,1715902243968,-500.0,0.00011175,2]
[327216050,1715902243978,-500.0,0.00011175,2]
[327216051,1715902243987,-500.0,0.00011175,2]
[327216052,1715902243996,-500.0,0.00011175,2]
[327216053,1715902244006,-500.0,0.00011175,2]
[327216054,1715902244015,-230.5468668,0.00011175,2]
[327216055,1715902244024,-500.0,0.00011175,2]
[327216056,1715902244033,-630.39398352,0.00011175,2]
[327216057,1715902244043,-500.0,0.00011175,2]
[327216058,1715902244052,-500.0,0.00011175,2]
[327216059,1715902244061,-326.16,0.00011175,2]
[327216060,1715902244071,-500.0,0.00011175,2]
[327216061,1715902244081,-500.0,0.00011175,2]
[327216062,1715902244090,-635.48,0.00011175,2]
[327216063,1715902244099,-500.0,0.00011175,2]
[327216064,1715902244109,-614.47,0.00011175,2]
[327216065,1715902244118,-500.0,0.00011175,2]
[327216066,1715902244127,-212.69,0.00011175,2]
[327216067,1715902244137,-500.0,0.00011175,2]
[327216068,1715902244146,-532.57151196,0.00011175,2]
[327216069,1715902244156,-429.91,0.00011175,2]
[327216070,1715902244166,-500.0,0.00011175,2]
[327216071,1715902244175,-500.0,0.00011175,2]
[327216072,1715902244186,-618.83,0.00011175,2]
[327216073,1715902244195,-500.0,0.00011175,2]
[327216074,1715902244205,-1057.04,0.00011175,2]
[327216075,1715902244215,-500.0,0.00011175,2]
[327216076,1715902244226,-500.0,0.00011175,2]
[327216077,1715902244235,-500.0,0.00011175,2]
[327216078,1715902244245,-224.67,0.00011175,2]
[327216079,1715902244255,-608.30339337,0.00011175,2]
[327216080,1715902244265,-676.89,0.00011175,2]
[327216081,1715902244274,-500.0,0.00011175,2]
[327216082,1715902244284,-500.0,0.00011175,2]
[327216083,1715902244294,-635.87,0.00011175,2]
[327216084,1715902244303,-296.74,0.00011175,2]
[327216085,1715902244313,-591.5138566,0.00011175,2]
[327216086,1715902244322,-500.0,0.00011175,2]
[327216087,1715902244332,-500.0,0.00011175,2]
[327216088,1715902244342,-150.84,0.00011175,2]
[327216089,1715902244352,-500.0,0.00011175,2]
[327216090,1715902244362,-500.0,0.00011175,2]
[327216091,1715902244372,-506.19832873,0.00011175,2]
[327216092,1715902244382,-616.77,0.00011175,2]
[327216093,1715902244392,-500.0,0.00011175,2]
[327216094,1715902244402,-307.18,0.00011175,2]
[327216095,1715902244412,-235.96,0.00011175,2]
[327216096,1715902244422,-500.0,0.00011175,2]
[327216097,1715902244431,-500.0,0.00011175,2]
[327216098,1715902244440,-500.0,0.00011175,2]
[327216099,1715902244450,-677.41,0.00011175,2]
[327216100,1715902244459,-650.96,0.00011175,2]
[327216101,1715902244469,-500.0,0.00011175,2]
[327216102,1715902244478,-500.0,0.00011175,2]
[327216103,1715902244488,-1034.67,0.00011175,2]
[327216104,1715902244498,-500.0,0.00011175,2]
[327216105,1715902244507,-500.0,0.00011175,2]
[327216106,1715902244518,-500.0,0.00011175,2]
[327216107,1715902244529,-500.0,0.00011175,2]
[327216108,1715902244540,-500.0,0.00011175,2]
[327216109,1715902244549,-500.0,0.00011175,2]
[327216110,1715902244559,-500.0,0.00011175,2]
[327216111,1715902244569,-697.54,0.00011175,2]
[327216112,1715902244579,-500.0,0.00011175,2]
[327216113,1715902244588,-500.0,0.00011175,2]
[327216114,1715902244599,-500.0,0.00011175,2]
[327216115,1715902244609,-500.0,0.00011175,2]
[327216116,1715902244618,-500.0,0.00011175,2]
[327216117,1715902244628,-500.0,0.00011175,2]
[327216118,1715902244637,-500.0,0.00011175,2]
[327216119,1715902244648,-568.1,0.00011175,2]
[327216120,1715902244658,-574.81,0.00011175,2]
[327216121,1715902244668,-500.0,0.00011175,2]
[327216122,1715902244677,-500.0,0.00011175,2]
[327216124,1715902244687,-500.0,0.00011175,2]
[327216125,1715902244696,-500.0,0.00011175,2]
[327216126,1715902244706,-536.68,0.00011175,2]
[327216127,1715902244715,-500.0,0.00011175,2]
[327216128,1715902244724,-500.0,0.00011175,2]
[327216129,1715902244734,-500.0,0.00011175,2]
[327216130,1715902244743,-500.0,0.00011175,2]
[327216131,1715902244752,-500.0,0.00011175,2]
[327216132,1715902244762,-500.0,0.00011175,2]
[327216133,1715902244772,-500.0,0.00011175,2]
[327216134,1715902244781,-500.0,0.00011175,2]
[327216135,1715902244794,-500.0,0.00011175,2]
[327216136,1715902244803,-500.0,0.00011175,2]
[327216137,1715902244814,-537.29,0.00011175,2]
[327216138,1715902244824,-500.0,0.00011175,2]
[327216139,1715902244833,-500.0,0.00011175,2]
[327216140,1715902244843,-951.0,0.00011175,2]
[327216141,1715902244852,-500.0,0.00011175,2]
[327216142,1715902244861,-500.0,0.00011175,2]
[327216143,1715902244871,-500.0,0.00011175,2]
[327216144,1715902244880,-500.0,0.00011175,2]
[327216145,1715902244890,-500.0,0.00011175,2]
[327216146,1715902244899,-500.0,0.00011175,2]
[327216147,1715902244908,-500.0,0.00011175,2]
[327216148,1715902244918,-596.69,0.00011175,2]
[327216149,1715902244927,-500.0,0.00011175,2]
[327216150,1715902244937,-1841.75,0.00011175,2]
[327216152,1715902244946,-757.72,0.00011175,2]
[327216154,1715902244956,-506.03,0.00011175,2]
[327216155,1715902244966,-500.0,0.00011175,2]
[327216156,1715902244975,-500.0,0.00011175,2]
[327216157,1715902244985,-500.0,0.00011175,2]
[327216158,1715902244995,-1177.42,0.00011175,2]
[327216159,1715902245004,-500.0,0.00011175,2]
[327216160,1715902245013,-500.0,0.00011175,2]
[327216161,1715902245023,-500.0,0.00011175,2]
[327216162,1715902245033,-500.0,0.00011175,2]
[327216163,1715902245042,-500.0,0.00011175,2]
[327216164,1715902245052,-543.01,0.00011175,2]
[327216165,1715902245062,-500.0,0.00011175,2]
[327216166,1715902245071,-500.0,0.00011175,2]
[327216167,1715902245080,-500.0,0.00011175,2]
[327216168,1715902245090,-500.0,0.00011175,2]
[327216169,1715902245100,-423.74,0.00011175,2]
[327216170,1715902245110,-500.0,0.00011175,2]
[327216171,1715902245119,-500.0,0.00011175,2]
[327216172,1715902245131,-324.07,0.00011175,2]
[327216173,1715902245140,-1457.65,0.00011175,2]
[327216174,1715902245150,-500.0,0.00011175,2]
[327216175,1715902245159,-712.22,0.00011175,2]
[327216176,1715902245168,-500.0,0.00011175,2]
[327216177,1715902245178,-544.93,0.00011175,2]
[327216178,1715902245188,-500.0,0.00011175,2]
[327216179,1715902245198,-500.0,0.00011175,2]
[327216180,1715902245207,-500.0,0.00011175,2]
[327216181,1715902245217,-1278.15,0.00011175,2]
[327216182,1715902245226,-813.14,0.00011175,2]
[327216183,1715902245235,-542.01,0.00011175,2]
[327216184,1715902245244,-500.0,0.00011175,2]
[327216185,1715902245254,-500.0,0.00011175,2]
[327216186,1715902245263,-407.16,0.00011175,2]
[327216187,1715902245273,-407.97,0.00011175,2]
[327216188,1715902245283,-500.0,0.00011175,2]
[327216189,1715902245292,-500.0,0.00011175,2]
[327216190,1715902245302,-500.0,0.00011175,2]
[327216191,1715902245311,-500.0,0.00011175,2]
[327216192,1715902245321,-610.67,0.00011175,2]
[327216193,1715902245330,-500.0,0.00011175,2]
[327216194,1715902245340,-500.0,0.00011175,2]
[327216195,1715902245349,-500.0,0.00011175,2]
[327216196,1715902245358,-500.0,0.00011175,2]
[327216197,1715902245368,-1036.48,0.00011175,2]
[327216198,1715902245378,-500.0,0.00011175,2]
[327216199,1715902245387,-500.0,0.00011175,2]
[327216200,1715902245397,-500.0,0.00011175,2]
[327216201,1715902245406,-500.0,0.00011175,2]
[327216202,1715902245416,-500.0,0.00011175,2]
[327216203,1715902245425,-838.48,0.00011175,2]
[327216204,1715902245435,-500.0,0.00011175,2]
[327216205,1715902245444,-1483.97,0.00011175,2]
[327216206,1715902245453,-294.07,0.00011175,2]
[327216207,1715902245463,-500.0,0.00011175,2]
[327216208,1715902245472,-500.0,0.00011175,2]
[327216209,1715902245481,-500.0,0.00011175,2]
[327216210,1715902245491,-500.0,0.00011175,2]
[327216211,1715902245500,-2281.23,0.00011175,2]
[327216212,1715902245510,-500.0,0.00011175,2]
[327216213,1715902245523,-692.64,0.00011175,2]
[327216214,1715902245532,-500.0,0.00011175,2]
[327216215,1715902245542,-500.0,0.00011175,2]
[327216216,1715902245551,-500.0,0.00011175,2]
[327216217,1715902245561,-500.0,0.00011175,2]
[327216218,1715902245571,-1132.59,0.00011175,2]
[327216219,1715902245580,-4730.03,0.00011175,2]
[327216220,1715902245589,-817.38,0.00011175,2]
[327216221,1715902245599,-744.61,0.00011175,2]
[327216222,1715902245609,-500.0,0.00011175,2]
[327216223,1715902245618,-7523.6,0.00011175,2]
[327216224,1715902245627,-7523.6,0.00011175,2]
[327216225,1715902245636,-500.0,0.00011175,2]
[327216226,1715902245645,-500.0,0.00011175,2]
[327216227,1715902245656,-500.0,0.00011175,2]
[327216229,1715902245665,-500.0,0.00011175,2]
[327216231,1715902245674,-845.28,0.00011175,2]
[327216233,1715902245683,-500.0,0.00011175,2]
[327216235,1715902245692,-545.91,0.00011175,2]
[327216236,1715902245701,-500.0,0.00011175,2]
[327216238,1715902245710,-500.0,0.00011175,2]
[327216240,1715902245720,-500.0,0.00011175,2]
[327216242,1715902245729,-500.0,0.00011175,2]
[327216243,1715902245738,-845.6,0.00011175,2]
[327216244,1715902245748,-845.6,0.00011175,2]
[327216245,1715902245757,-500.0,0.00011175,2]
[327216246,1715902245767,-2655.45,0.00011175,2]
[327216247,1715902245776,-500.0,0.00011175,2]
[327216248,1715902245785,-880.17,0.00011175,2]
[327216249,1715902245796,-10895.16,0.00011175,2]
[327216250,1715902245805,-636.39,0.00011175,2]
[327216251,1715902245815,-500.0,0.00011175,2]
[327216252,1715902245824,-636.39,0.00011175,2]
[327216253,1715902245833,-1366.97,0.00011175,2]
[327216254,1715902245843,-1366.97,0.00011175,2]
[327216255,1715902245854,-500.0,0.00011175,2]
[327216256,1715902245863,-1644.48,0.00011175,2]
[327216258,1715902245872,-500.0,0.00011175,2]
[327216260,1715902245882,-2414.0,0.00011175,2]
[327216262,1715902245891,-2414.0,0.00011175,2]
[327216264,1715902245900,-500.0,0.00011175,2]
[327216266,1715902245910,-500.0,0.00011175,2]
[327216268,1715902245920,-623.19,0.00011175,2]
[327216269,1715902245930,-2192.31,0.00011175,2]
[327216270,1715902245939,-500.0,0.00011175,2]
[327216271,1715902245949,-232.88519602,0.00011175,2]
[327216272,1715902245958,-500.0,0.00011175,2]
[327216273,1715902245967,-798.44,0.00011175,2]
[327216274,1715902245976,-798.44,0.00011175,2]
[327216275,1715902245985,-2311.8,0.00011175,2]
[327216276,1715902245995,-1003.73,0.00011175,2]
[327216277,1715902246005,-500.0,0.00011175,2]
[327216278,1715902246014,-1060.49,0.00011175,2]
[327216279,1715902246024,-2737.36,0.00011175,2]
[327216280,1715902246035,-500.0,0.00011175,2]
[327216281,1715902246046,-500.0,0.00011175,2]
[327216282,1715902246056,-500.0,0.00011175,2]
[327216283,1715902246066,-1845.75,0.00011175,2]
[327216284,1715902246074,-500.0,0.00011175,2]
[327216285,1715902246083,-1845.75,0.00011175,2]
[327216286,1715902246093,-590.82,0.00011175,2]
[327216287,1715902246102,-2182.97,0.00011175,2]
[327216288,1715902246113,-500.0,0.00011175,2]
[327216289,1715902246124,-2959.78,0.00011175,2]
[327216290,1715902246134,-500.0,0.00011175,2]
[327216291,1715902246144,-500.0,0.00011175,2]
[327216292,1715902246154,-748.34,0.00011175,2]
[327216293,1715902246164,-500.0,0.00011175,2]
[327216294,1715902246175,-500.0,0.00011175,2]
[327216295,1715902246184,-500.0,0.00011175,2]
[327216296,1715902246193,-500.0,0.00011175,2]
[327216297,1715902246203,-500.0,0.00011175,2]
[327216298,1715902246212,-500.0,0.00011175,2]
[327216299,1715902246221,-500.0,0.00011175,2]
[327216300,1715902246232,-1847.71,0.00011175,2]
[327216301,1715902246241,-1847.71,0.00011175,2]
[327216302,1715902246251,-1503.09,0.00011175,2]
[327216303,1715902246262,-925.27,0.00011175,2]
[327216304,1715902246271,-500.0,0.00011175,2]
[327216305,1715902246282,-500.0,0.00011175,2]
[327216306,1715902246292,-500.0,0.00011175,2]
[327216307,1715902246302,-500.0,0.00011175,2]
[327216308,1715902246312,-1549.03,0.00011175,2]
[327216309,1715902246323,-500.0,0.00011175,2]
[327216310,1715902246332,-500.0,0.00011175,2]
[327216311,1715902246342,-828.77,0.00011175,2]
[327216312,1715902246352,-620.11,0.00011175,2]
[327216313,1715902246362,-828.77,0.00011175,2]
[327216314,1715902246372,-500.0,0.00011175,2]
[327216315,1715902246381,-500.0,0.00011175,2]
[327216316,1715902246391,-824.18,0.00011175,2]
[327216317,1715902246402,-1336.74,0.00011175,2]
[327216318,1715902246413,-1336.74,0.00011175,2]
[327216319,1715902246423,-500.0,0.00011175,2]
[327216320,1715902246433,-1683.5,0.00011175,2]
[327216321,1715902246443,-2599.31,0.00011175,2]
[327216322,1715902246452,-500.0,0.00011175,2]
[327216323,1715902246462,-233.88502614,0.00011175,2]
[327216324,1715902246471,-1748.35,0.00011175,2]
[327216325,1715902246481,-500.0,0.00011175,2]
[327216326,1715902246492,-500.0,0.00011175,2]
[327216327,1715902246502,-500.0,0.00011175,2]
[327216328,1715902246512,-624.27,0.00011175,2]
[327216329,1715902246525,-624.27,0.00011175,2]
[327216330,1715902246700,-770.41,0.00011175,2]
[327216331,1715902246718,-770.41,0.00011175,2]
[327216332,1715902246728,-500.0,0.00011175,2]
[327216333,1715902246738,-821.33,0.00011175,2]
[327216334,1715902246748,-1260.59,0.00011175,2]
[327216335,1715902246757,-1372.17,0.00011175,2]
[327216336,1715902246766,-557.52,0.00011175,2]
[327216337,1715902246776,-557.52,0.00011175,2]
[327216338,1715902246785,-500.0,0.00011175,2]
[327216339,1715902246795,-1557.81,0.00011175,2]
[327216340,1715902246804,-1557.81,0.00011175,2]
[327216341,1715902246814,-500.0,0.00011175,2]
[327216342,1715902246823,-500.0,0.00011175,2]
[327216343,1715902246832,-2363.86,0.00011175,2]
[327216344,1715902246842,-500.0,0.00011175,2]
[327216345,1715902246851,-500.0,0.00011175,2]
[327216346,1715902246863,-2363.86,0.00011175,2]
[327216347,1715902246874,-500.0,0.00011175,2]
[327216348,1715902246885,-768.47,0.00011175,2]
[327216349,1715902246895,-1340.11,0.00011175,2]
[327216350,1715902246906,-973.36,0.00011175,2]
[327216351,1715902246916,-973.36,0.00011175,2]
[327216352,1715902246927,-914.01,0.00011175,2]
[327216353,1715902246938,-500.0,0.00011175,2]
[327216354,1715902246947,-500.0,0.00011175,2]
[327216355,1715902246959,-1304.68,0.00011175,2]
[327216356,1715902246969,-1202.76,0.00011175,2]
[327216357,1715902246980,-1202.76,0.00011175,2]
[327216358,1715902246990,-500.0,0.00011175,2]
[327216359,1715902247002,-500.0,0.00011175,2]
[327216360,1715902247011,-500.0,0.00011175,2]
[327216361,1715902247023,-500.0,0.00011175,2]
[327216362,1715902247033,-739.27,0.00011175,2]
[327216363,1715902247043,-1330.82,0.00011175,2]
[327216364,1715902247052,-739.27,0.00011175,2]
[327216365,1715902247061,-500.0,0.00011175,2]
[327216366,1715902247071,-500.0,0.00011175,2]
[327216367,1715902247080,-500.0,0.00011175,2]
[327216368,1715902247090,-500.0,0.00011175,2]
[327216369,1715902247099,-500.0,0.00011175,2]
[327216370,1715902247108,-500.0,0.00011175,2]
[327216371,1715902247117,-2171.72,0.00011175,2]
[327216372,1715902247127,-2171.72,0.00011175,2]
[327216373,1715902247136,-500.0,0.00011175,2]
[327216374,1715902247145,-516.46,0.00011175,2]
[327216375,1715902247155,-669.55,0.00011175,2]
[327216376,1715902247164,-432.65,0.00011175,2]
[327216377,1715902247174,-1383.07,0.00011175,2]
[327216378,1715902247183,-741.82,0.00011175,2]
[327216379,1715902247193,-500.0,0.00011175,2]
[327216380,1715902247203,-4659.0,0.00011175,2]
[327216381,1715902247213,-4659.0,0.00011175,2]
[327216382,1715902247222,-500.0,0.00011175,2]
[327216383,1715902247232,-500.0,0.00011175,2]
[327216384,1715902247241,-500.0,0.00011175,2]
[327216385,1715902247251,-512.17,0.00011175,2]
[327216386,1715902247260,-500.0,0.00011175,2]
[327216387,1715902247269,-640.4,0.00011175,2]